bitfinex/quotes_BTCUSD_20230405
["timestamp","ask_amount","ask_price","bid_price","bid_amount"]
[1680699051350,0.001,28629.0,28621.0,0.025]
[1680699051351,0.50533937,28628.0,28621.0,0.025]
[1680699051579,0.08925044,28627.0,28621.0,0.025]
[1680699051815,0.14189681,28626.0,28621.0,0.025]
[1680699052036,0.14189681,28626.0,28617.0,0.01682345]
[1680699052037,0.008733,28625.0,28617.0,0.01682345]
[1680699052255,0.49660737,28624.0,28617.0,0.01664345]
[1680699052491,0.49678737,28624.0,28617.0,0.01664345]
[1680699052704,0.15,28623.0,28621.0,0.012]
[1680699052918,0.45262792,28622.0,28618.0,0.00042031]
[1680699053146,0.030276,28621.0,28618.0,0.00042031]
[1680699053563,0.030456,28621.0,28618.0,0.00042031]
[1680699054219,0.03919,28621.0,28618.0,0.00042031]
[1680699054429,0.032989,28619.0,28618.0,0.00042031]
[1680699054640,0.0321,28621.0,28618.0,0.00042031]
[1680699054851,0.00018,28621.0,28618.0,0.00042031]
[1680699055110,0.008735,28621.0,28618.0,0.00042031]
[1680699055332,0.008735,28621.0,28618.0,0.00142031]
[1680699055333,0.007,28621.0,28618.0,0.00142031]
[1680699056436,0.007,28621.0,28619.0,0.35645756]
[1680699056660,0.007,28621.0,28619.0,0.35471056]
[1680699056881,0.007,28621.0,28620.0,0.20834467]
[1680699057100,0.007,28621.0,28620.0,0.52326373]
[1680699057321,0.007,28621.0,28620.0,0.75443096]
[1680699057531,0.007,28621.0,28620.0,0.39654056]
[1680699058057,0.00018,28628.0,28620.0,0.39654056]
[1680699058281,0.925423,28634.0,28620.0,0.014827]
[1680699058282,0.012,28621.0,28620.0,0.014827]
[1680699058494,0.17629066,28633.0,28620.0,0.041879]
[1680699058495,0.2742885,28632.0,28620.0,0.041879]
[1680699058713,0.008732,28631.0,28624.0,0.08339101]
[1680699058923,0.40726,28630.0,28624.0,0.08357101]
[1680699059188,0.030823,28629.0,28625.0,0.08339101]
[1680699059412,0.38613356,28631.0,28625.0,0.33659726]
[1680699059644,0.039757,28630.0,28626.0,0.08339101]
[1680699059853,0.039757,28630.0,28626.0,0.00018]
[1680699059854,0.029816,28629.0,28626.0,0.00018]
[1680699060302,0.029816,28629.0,28626.0,0.08357101]
[1680699060525,0.39325856,28629.0,28626.0,0.08357101]
[1680699060729,0.03148,28627.0,28626.0,0.08357101]
[1680699060938,0.040213,28627.0,28626.0,0.00018]
[1680699061166,0.39492356,28627.0,28626.0,0.00018]
[1680699061633,1.06362356,28627.0,28626.0,0.00018]
[1680699061839,1.36904164,28627.0,28625.0,0.00018]
[1680699062045,0.76309456,28626.0,28622.0,0.00018]
[1680699062247,0.057577,28625.0,28622.0,0.00018]
[1680699062480,0.031088,28623.0,28622.0,0.00018]
[1680699062687,0.54453256,28623.0,28622.0,0.00018]
[1680699063414,0.53579856,28623.0,28621.0,0.00018]
[1680699063648,0.031909,28622.0,28621.0,0.00018]
[1680699064309,0.44235492,28622.0,28621.0,0.00018]
[1680699064524,0.45108892,28622.0,28621.0,0.00018]
[1680699064742,0.44235492,28622.0,28621.0,0.00018]
[1680699065019,0.44235492,28622.0,28621.0,0.00118]
[1680699065020,0.47158892,28622.0,28621.0,0.00118]
[1680699065235,0.47158892,28622.0,28617.0,0.01664345]
[1680699065236,0.001,28621.0,28617.0,0.01664345]
[1680699065463,0.50534237,28620.0,28618.0,0.00042031]
[1680699065691,0.479496,28619.0,28618.0,0.00042031]
[1680699065918,0.84294156,28619.0,28618.0,0.00042031]
[1680699066383,0.83420656,28619.0,28618.0,0.00042031]
[1680699066596,0.029496,28619.0,28618.0,0.00042031]
[1680699066846,0.15,28622.0,28618.0,0.00042031]
[1680699066847,0.01212,28622.0,28618.0,0.00042031]
[1680699067062,0.01212,28622.0,28618.0,0.08581132]
[1680699067063,0.012,28619.0,28618.0,0.08581132]
[1680699067271,0.008734,28622.0,28618.0,0.08399132]
[1680699067487,0.012,28619.0,28618.0,0.08581132]
[1680699067713,0.038422,28619.0,28618.0,0.08581132]
[1680699067934,0.038422,28619.0,28618.0,0.00042031]
[1680699067935,0.040157,28619.0,28618.0,0.00042031]
[1680699068153,0.40186756,28619.0,28618.0,0.00242031]
[1680699068365,0.39486756,28619.0,28618.0,0.00042031]
[1680699068582,0.40186756,28619.0,28618.0,0.00242031]
[1680699068818,0.48829922,28619.0,28618.0,0.00242031]
[1680699069284,0.78829922,28619.0,28618.0,0.00242031]
[1680699069501,0.78129922,28619.0,28618.0,0.00042031]
[1680699069717,0.78129922,28619.0,28618.0,0.00242031]
[1680699069718,0.78829922,28619.0,28618.0,0.00242031]
[1680699069942,0.78129922,28619.0,28618.0,0.00042031]
[1680699070161,0.70204756,28619.0,28618.0,0.00242031]
[1680699070386,0.69504756,28619.0,28618.0,0.00042031]
[1680699070663,0.69504756,28619.0,28618.0,0.00200031]
[1680699070664,0.89951922,28619.0,28618.0,0.00200031]
[1680699070886,0.00041969,28618.0,28617.0,3.45e-06]
[1680699071110,0.00041969,28618.0,28615.0,0.02]
[1680699071111,1.23712314,28618.0,28615.0,0.02]
[1680699071329,0.030309,28616.0,28612.0,0.0219]
[1680699071554,0.52281637,28615.0,28612.0,0.0219]
[1680699071779,0.031523,28613.0,28612.0,0.0219]
[1680699072008,0.53686737,28613.0,28610.0,0.0219]
[1680699072234,0.53686737,28613.0,28604.0,0.08339101]
[1680699072235,0.75366656,28611.0,28604.0,0.00018]
[1680699072470,0.16771,28608.0,28602.0,0.0219]
[1680699072695,0.00874,28603.0,28602.0,0.0219]
[1680699072918,0.17174281,28603.0,28602.0,0.02208]
[1680699073165,0.00018,28607.0,28602.0,0.14716651]
[1680699073382,0.40718674,28612.0,28602.0,0.10544485]
[1680699073383,0.52360737,28611.0,28602.0,0.10544485]
[1680699073596,0.480703,28610.0,28603.0,0.12793974]
[1680699073810,0.35471056,28608.0,28603.0,0.12811974]
[1680699074021,0.008739,28605.0,28603.0,0.00018]
[1680699074262,0.0315,28604.0,28603.0,0.00018]
[1680699074515,0.39495056,28604.0,28603.0,0.00018]
[1680699074725,0.38621056,28604.0,28602.0,0.02208]
[1680699074942,0.032763,28603.0,28602.0,0.02208]
[1680699075177,0.42810783,28603.0,28602.0,0.02208]
[1680699075390,0.38747356,28603.0,28602.0,0.02208]
[1680699075601,0.38747356,28603.0,28602.0,0.0219]
[1680699076448,0.42321356,28603.0,28602.0,0.0219]
[1680699076670,0.69621356,28603.0,28602.0,0.0219]
[1680699076890,1.23017592,28603.0,28602.0,0.0219]
[1680699077124,1.19443592,28603.0,28602.0,0.0219]
[1680699077335,1.23017592,28603.0,28602.0,0.0219]
[1680699077546,1.22068214,28603.0,28602.0,0.0219]
[1680699077768,1.07892609,28603.0,28602.0,0.0219]
[1680699078198,1.06141987,28603.0,28602.0,0.0219]
[1680699078928,1.08841987,28603.0,28602.0,0.0219]
[1680699079145,1.10592609,28603.0,28602.0,0.0219]
[1680699079361,1.07892609,28603.0,28602.0,0.0219]
[1680699079577,1.2623557,28603.0,28602.0,0.0219]
[1680699079790,1.21784948,28603.0,28602.0,0.0219]
[1680699080211,1.24484948,28603.0,28602.0,0.0219]
[1680699080425,1.21784948,28603.0,28602.0,0.0219]
[1680699080652,1.22634948,28603.0,28602.0,0.0219]
[1680699080861,1.24271273,28603.0,28602.0,0.0219]
[1680699081072,1.24271273,28603.0,28602.0,0.01321055]
[1680699081507,1.24271273,28603.0,28602.0,5.5e-07]
[1680699081508,1.2457769,28603.0,28602.0,5.5e-07]
[1680699081720,1.23628312,28603.0,28602.0,5.5e-07]
[1680699081943,1.26328312,28603.0,28601.0,5.5e-07]
[1680699082156,1.15580172,28602.0,28601.0,5.5e-07]
[1680699082369,0.3687,28600.0,28591.0,0.00018]
[1680699082594,0.3687,28600.0,28585.0,0.0274391]
[1680699082595,0.526704,28592.0,28585.0,0.0274991]
[1680699082811,0.087423,28597.0,28585.0,0.01001272]
[1680699082812,0.0968,28586.0,28585.0,0.01001272]
[1680699083035,0.27807581,28586.0,28582.0,0.0219]
[1680699083250,0.17083681,28585.0,28582.0,0.0219]
[1680699083480,0.027318,28583.0,28582.0,0.0219]
[1680699083715,0.17796081,28583.0,28582.0,0.0219]
[1680699084148,0.027318,28583.0,28582.0,0.0219]
[1680699084587,0.027318,28583.0,28574.0,0.3707]
[1680699084588,0.027318,28583.0,28574.0,0.35457]
[1680699084811,0.14189681,28582.0,28577.0,0.35471056]
[1680699085023,0.14189681,28582.0,28574.0,0.34975]
[1680699085240,0.14189681,28582.0,28574.0,0.34887]
[1680699085241,0.14207681,28582.0,28574.0,0.34887]
[1680699085678,0.20142555,28582.0,28574.0,0.47680974]
[1680699085899,0.15907681,28582.0,28574.0,0.47680974]
[1680699086152,0.49678737,28582.0,28574.0,0.47680974]
[1680699086604,0.00018,28582.0,28578.0,0.3687]
[1680699086822,0.3,28590.0,28580.0,0.3687]
[1680699086823,0.00018,28585.0,28580.0,0.3687]
[1680699087052,0.00018,28585.0,28581.0,0.5122943]
[1680699087272,0.00018,28588.0,28582.0,0.029449]
[1680699087510,0.00018,28588.0,28583.0,0.8513503]
[1680699087728,0.00018,28588.0,28584.0,0.54918]
[1680699087946,0.0968,28595.0,28584.0,0.54918]
[1680699087947,0.00012,28591.0,28585.0,0.8848753]
[1680699088159,0.01657961,28588.0,28586.0,0.15830274]
[1680699088383,0.15,28597.0,28587.0,0.89938756]
[1680699088596,0.15,28597.0,28588.0,0.15793374]
[1680699088597,0.00018,28597.0,28588.0,0.15793374]
[1680699088820,0.00018,28598.0,28589.0,0.38376056]
[1680699089045,0.00018,28599.0,28590.0,0.12793974]
[1680699089260,0.00018,28599.0,28592.0,0.0026]
[1680699089506,0.00018,28599.0,28593.0,0.12793974]
[1680699090374,0.002,28597.0,28593.0,0.12793974]
[1680699090607,0.00018,28599.0,28594.0,0.75185156]
[1680699090824,0.38558,28613.0,28598.0,0.1458]
[1680699091040,0.008738,28611.0,28600.0,0.1463]
[1680699091263,0.36344856,28610.0,28601.0,0.12793974]
[1680699091516,0.017478,28608.0,28601.0,0.12793974]
[1680699091730,0.00874,28604.0,28601.0,0.12793974]
[1680699091954,0.3687,28601.0,28598.0,0.028]
[1680699092172,0.028123,28599.0,28592.0,0.00018]
[1680699092388,0.14189681,28598.0,28590.0,5.74471056]
[1680699092611,0.14189681,28598.0,28591.0,0.38436956]
[1680699092834,0.15610449,28598.0,28592.0,0.029589]
[1680699093062,0.14207681,28598.0,28592.0,0.029589]
[1680699093537,0.14207681,28598.0,28592.0,0.38429956]
[1680699093761,0.14207681,28598.0,28592.0,0.35471056]
[1680699094068,0.14207681,28598.0,28589.0,0.00018]
[1680699094069,0.008743,28593.0,28589.0,0.00018]
[1680699094287,0.008743,28593.0,28585.0,1.0]
[1680699094288,0.17106381,28592.0,28585.0,1.0]
[1680699094516,0.14189681,28592.0,28585.0,1.35471056]
[1680699094727,0.13689681,28592.0,28585.0,1.35489056]
[1680699095157,0.13689681,28592.0,28585.0,1.4878303]
[1680699095375,0.13689681,28592.0,28585.0,1.4877703]
[1680699095590,0.13689681,28592.0,28585.0,1.00012]
[1680699095812,0.13689681,28592.0,28585.0,1.13305974]
[1680699096261,0.13689681,28592.0,28585.0,1.16105974]
[1680699096480,0.13689681,28592.0,28585.0,1.13311974]
[1680699096481,0.15,28591.0,28585.0,1.13311974]
[1680699096697,0.008745,28587.0,28585.0,1.022]
[1680699096906,0.14189681,28586.0,28585.0,1.0]
[1680699097126,0.14189681,28586.0,28585.0,1.01606]
[1680699097369,0.36345556,28586.0,28585.0,1.01618]
[1680699097596,0.330089,28586.0,28585.0,1.003]
[1680699098064,0.330089,28586.0,28585.0,1.0]
[1680699098280,0.034089,28586.0,28585.0,1.0]
[1680699098506,0.004,28586.0,28585.0,1.35645956]
[1680699098722,0.004,28586.0,28585.0,1.38382856]
[1680699099191,0.15018,28597.0,28585.0,1.38382856]
[1680699099404,0.003,28586.0,28585.0,1.002]
[1680699099613,0.40854956,28596.0,28585.0,1.029655]
[1680699099830,0.10866304,28595.0,28585.0,1.02812]
[1680699100068,0.11716304,28595.0,28585.0,1.00018]
[1680699100281,0.10866304,28595.0,28585.0,1.028]
[1680699100576,0.00018,28595.0,28585.0,0.5]
[1680699100796,0.14189681,28594.0,28586.0,0.5167333]
[1680699101011,0.14189681,28594.0,28586.0,0.4876503]
[1680699101012,0.44207681,28594.0,28586.0,0.4876503]
[1680699101902,0.35471056,28593.0,28585.0,0.5]
[1680699102110,0.3,28592.0,28585.0,0.66093974]
[1680699102334,0.30018,28592.0,28588.0,0.00042039]
[1680699102757,0.30018,28592.0,28588.0,0.13336013]
[1680699102976,0.30018,28592.0,28590.0,0.5187]
[1680699102977,0.00018,28592.0,28590.0,0.5187]
[1680699103206,0.00857102,28606.0,28591.0,0.8851983]
[1680699103207,0.00018,28597.0,28591.0,0.8851983]
[1680699103427,0.395,28605.0,28592.0,0.53228874]
[1680699103428,0.00018,28599.0,28592.0,0.53228874]
[1680699103649,0.00018,28600.0,28593.0,0.38377056]
[1680699103871,0.00018,28600.0,28594.0,0.52864974]
[1680699104078,0.39489036,28607.0,28595.0,0.0023]
[1680699104079,0.00018,28602.0,28595.0,0.0023]
[1680699104331,0.00018,28602.0,28596.0,0.13293974]
[1680699104543,0.00018,28602.0,28597.0,0.35471056]
[1680699104768,0.00018,28602.0,28597.0,0.4876503]
[1680699105216,0.00018,28602.0,28598.0,0.13293974]
[1680699105454,0.00018,28602.0,28599.0,0.35471056]
[1680699105687,0.00874,28603.0,28597.0,0.002]
[1680699105904,0.14189681,28603.0,28597.0,0.13293974]
[1680699106119,0.00018,28603.0,28597.0,0.14193974]
[1680699106347,0.00018,28603.0,28597.0,0.13293974]
[1680699106563,0.001,28602.0,28599.0,0.001]
[1680699106778,0.001,28602.0,28597.0,0.4876503]
[1680699106779,0.00018,28604.0,28597.0,0.35471056]
[1680699107016,0.00018,28604.0,28593.0,0.5187]
[1680699107017,0.14207681,28604.0,28593.0,0.5187]
[1680699107231,0.00018,28604.0,28594.0,0.031002]
[1680699107443,0.008739,28606.0,28598.0,0.0023]
[1680699107651,0.00018,28607.0,28599.0,0.4876503]
[1680699107652,0.008919,28607.0,28599.0,0.4876503]
[1680699107879,0.00018,28607.0,28599.0,0.4876503]
[1680699108592,0.00018,28607.0,28600.0,0.3687]
[1680699108593,0.001,28606.0,28600.0,0.3687]
[1680699108815,0.008738,28610.0,28603.0,0.0021]
[1680699109026,0.001,28607.0,28604.0,0.14189681]
[1680699109251,0.008738,28611.0,28603.0,0.35489056]
[1680699109483,0.00021,28613.0,28605.0,0.35691056]
[1680699109739,0.036193,28614.0,28605.0,0.35471056]
[1680699109955,0.029727,28613.0,28605.0,0.35471056]
[1680699110172,0.008738,28611.0,28606.0,0.14189681]
[1680699110593,0.008738,28611.0,28605.0,0.35489056]
[1680699110810,0.14972051,28611.0,28605.0,0.00018]
[1680699111026,0.14972051,28611.0,28602.0,0.00018]
[1680699111027,0.14098251,28610.0,28602.0,0.00018]
[1680699111242,0.017477,28608.0,28605.0,0.001]
[1680699111461,0.017477,28608.0,28602.0,0.00018]
[1680699111462,0.029632,28606.0,28602.0,0.00018]
[1680699111681,0.008739,28607.0,28605.0,0.009]
[1680699111682,0.57874077,28607.0,28605.0,0.009]
[1680699111894,0.12597468,28606.0,28600.0,0.00018]
[1680699112112,0.52359707,28605.0,28602.0,0.002]
[1680699112321,0.027736,28603.0,28595.0,0.00018]
[1680699112534,0.30874,28604.0,28596.0,0.35471056]
[1680699112535,0.14098251,28602.0,28596.0,0.35471056]
[1680699112779,0.14098251,28602.0,28596.0,0.35489056]
[1680699113241,0.14098251,28602.0,28599.0,0.0021]
[1680699113242,0.14119251,28602.0,28599.0,0.0021]
[1680699113499,0.00021,28602.0,28599.0,0.0021]
[1680699113711,0.00021,28606.0,28599.0,0.0021]
[1680699113925,0.00021,28606.0,28600.0,0.14189681]
[1680699114160,0.001,28605.0,28602.0,0.002]
[1680699114388,0.00021,28605.0,28600.0,0.14189681]
[1680699114614,0.00021,28605.0,28599.0,0.002]
[1680699114615,0.02622,28604.0,28599.0,0.002]
[1680699114827,0.44993251,28604.0,28597.0,0.35471056]
[1680699115042,0.14098251,28603.0,28602.0,0.001]
[1680699115261,0.029231,28603.0,28598.0,0.00018]
[1680699115470,0.3,28604.0,28598.0,0.35663856]
[1680699115697,0.00021,28607.0,28600.0,0.3709]
[1680699115962,1.9868,28610.0,28601.0,0.89367937]
[1680699116172,0.00021,28611.0,28602.0,0.002748]
[1680699116173,0.001,28603.0,28602.0,0.002748]
[1680699116447,0.001,28603.0,28602.0,0.75370556]
[1680699116660,0.001,28603.0,28602.0,0.75388556]
[1680699117104,0.15,28613.0,28602.0,0.75288556]
[1680699117325,0.49569307,28613.0,28603.0,0.49660737]
[1680699117544,0.00021,28615.0,28603.0,0.87772337]
[1680699117772,0.14098251,28615.0,28607.0,0.0021]
[1680699117985,2.34151056,28616.0,28609.0,0.001747]
[1680699117986,1.9868,28616.0,28609.0,0.001747]
[1680699118218,0.00021,28616.0,28610.0,0.14189681]
[1680699118432,0.407535,28618.0,28610.0,0.14189681]
[1680699118433,0.029058,28617.0,28610.0,0.14189681]
[1680699118643,0.38376856,28617.0,28610.0,0.14189681]
[1680699118858,0.029285,28616.0,28610.0,0.14189681]
[1680699119086,0.39901,28618.0,28610.0,0.14189681]
[1680699119302,0.39901,28618.0,28610.0,0.14364381]
[1680699119303,0.14119251,28618.0,28610.0,0.14364381]
[1680699119516,0.14098251,28618.0,28611.0,0.35471056]
[1680699119782,0.00021,28619.0,28612.0,0.14189681]
[1680699119990,0.008735,28618.0,28612.0,0.14189681]
[1680699120650,0.14971751,28618.0,28612.0,0.14189681]
[1680699120858,0.14971751,28618.0,28611.0,0.00018]
[1680699121084,0.14971751,28618.0,28611.0,0.14189681]
[1680699121294,0.44971751,28618.0,28611.0,0.14189681]
[1680699121501,0.44971751,28618.0,28612.0,0.001]
[1680699121502,0.52485736,28618.0,28612.0,0.001]
[1680699121718,0.89521207,28617.0,28609.0,0.00018]
[1680699121929,0.008736,28615.0,28611.0,0.015]
[1680699122148,0.38451856,28614.0,28611.0,0.015]
[1680699122377,0.19337956,28614.0,28611.0,0.01518]
[1680699122597,0.019805,28612.0,28611.0,0.015]
[1680699122812,0.028542,28612.0,28606.0,0.14207681]
[1680699123043,0.14098251,28611.0,28606.0,0.00018]
[1680699123256,0.14098251,28611.0,28605.0,0.0379]
[1680699123257,0.14972051,28611.0,28605.0,0.0379]
[1680699123941,0.14972051,28611.0,28606.0,0.028]
[1680699124157,0.50443107,28611.0,28606.0,0.028]
[1680699124392,0.30021,28613.0,28605.0,0.00018]
[1680699124604,0.44971951,28612.0,28606.0,0.14189681]
[1680699125053,0.46719451,28612.0,28606.0,0.14189681]
[1680699125263,0.64569307,28611.0,28605.0,0.00018]
[1680699125479,0.20214951,28610.0,28604.0,5.65018]
[1680699125726,0.35471056,28609.0,28604.0,0.00018]
[1680699125942,0.1,28607.0,28601.0,0.00018]
[1680699126157,0.00874,28603.0,28601.0,0.00018]
[1680699126402,0.14972251,28603.0,28601.0,0.00018]
[1680699126613,0.00874,28603.0,28601.0,0.00018]
[1680699126824,0.034958,28606.0,28601.0,0.00018]
[1680699126825,0.008739,28605.0,28601.0,0.00018]
[1680699127036,0.00874,28604.0,28601.0,0.00018]
[1680699127249,0.00874,28604.0,28600.0,0.5]
[1680699127250,0.003,28603.0,28600.0,0.50018]
[1680699127466,0.00874,28604.0,28600.0,0.50018]
[1680699127467,0.16720351,28602.0,28600.0,0.50018]
[1680699127692,0.04643745,28602.0,28600.0,0.50018]
[1680699127918,0.020067,28601.0,28600.0,0.50018]
[1680699128138,0.028807,28601.0,28600.0,0.50018]
[1680699128617,0.00874,28601.0,28600.0,0.50018]
[1680699128845,0.029645,28601.0,28600.0,0.50018]
[1680699129273,0.029645,28601.0,28600.0,0.50118]
[1680699129274,0.032645,28601.0,28600.0,0.50118]
[1680699129731,0.003,28601.0,28600.0,0.50118]
[1680699130443,0.01174,28601.0,28600.0,0.50118]
[1680699131285,0.00674,28601.0,28600.0,0.501]
[1680699131501,0.40021,28605.0,28600.0,0.501]
[1680699131711,0.00874,28601.0,28600.0,0.64289681]
[1680699131918,0.00874,28601.0,28600.0,0.501]
[1680699132129,0.030563,28601.0,28600.0,0.501]
[1680699132354,0.00874,28601.0,28600.0,0.501]
[1680699132561,0.021109,28601.0,28600.0,0.501]
[1680699133245,0.029849,28601.0,28600.0,0.501]
[1680699134306,0.00874,28601.0,28600.0,0.501]
[1680699134731,0.00021,28604.0,28600.0,0.50118]
[1680699134945,0.1,28609.0,28601.0,0.28124081]
[1680699134946,0.00021,28609.0,28601.0,0.28124081]
[1680699135157,0.36344856,28609.0,28602.0,0.14189681]
[1680699135404,0.36365856,28609.0,28602.0,0.14189681]
[1680699135619,0.00021,28609.0,28602.0,0.14364481]
[1680699135831,0.3776,28611.0,28603.0,0.35471056]
[1680699135832,0.008738,28610.0,28603.0,0.35471056]
[1680699136059,0.3776,28611.0,28604.0,0.14189681]
[1680699136060,0.52753051,28611.0,28604.0,0.14189681]
[1680699136265,0.386548,28611.0,28604.0,0.14189681]
[1680699136710,0.51858251,28611.0,28604.0,0.14189681]
[1680699136909,0.14098251,28611.0,28604.0,0.24189681]
[1680699137121,0.14098251,28611.0,28604.0,0.00012]
[1680699137122,0.66340307,28610.0,28604.0,0.00012]
[1680699137334,0.034957,28607.0,28601.0,0.00018]
[1680699137539,0.034957,28607.0,28603.0,0.023]
[1680699137540,0.017479,28605.0,28603.0,0.023]
[1680699137745,0.02005,28604.0,28602.0,0.00018]
[1680699137983,0.02005,28604.0,28600.0,0.5]
[1680699137984,0.020284,28603.0,28601.0,0.00018]
[1680699138197,0.35471056,28604.0,28601.0,0.00012]
[1680699138198,0.020319,28602.0,28601.0,0.00012]
[1680699138852,0.029059,28602.0,28601.0,0.00012]
[1680699139068,0.38376956,28602.0,28601.0,0.00012]
[1680699139316,0.38376956,28602.0,28601.0,0.00018]
[1680699139971,0.37502956,28602.0,28601.0,0.00012]
[1680699140185,0.020319,28602.0,28601.0,0.00012]
[1680699140390,0.00874,28603.0,28600.0,0.50018]
[1680699140641,0.019043,28601.0,28600.0,0.50012]
[1680699140852,0.019043,28601.0,28600.0,0.50018]
[1680699141740,0.045264,28601.0,28600.0,0.50018]
[1680699142158,0.027783,28601.0,28600.0,0.50012]
[1680699143005,0.019043,28601.0,28600.0,0.50012]
[1680699144323,0.00874,28603.0,28600.0,0.5]
[1680699144577,0.020178,28601.0,28600.0,0.5]
[1680699145218,0.0967728,28601.0,28600.0,0.5]
[1680699145437,1.37270575,28601.0,28600.0,0.5]
[1680699145653,1.65540953,28601.0,28600.0,0.5]
[1680699145905,1.62044653,28601.0,28600.0,0.5]
[1680699146110,1.58755473,28601.0,28600.0,0.5]
[1680699146532,1.58755473,28601.0,28600.0,0.502]
[1680699147170,1.58755473,28601.0,28600.0,0.5]
[1680699147373,1.58755473,28601.0,28600.0,0.502]
[1680699147841,1.58755473,28601.0,28600.0,0.5]
[1680699148491,2.12291506,28601.0,28600.0,0.5]
[1680699148705,1.9812343,28601.0,28600.0,0.4989531]
[1680699148917,1.9812343,28601.0,28600.0,0.4969531]
[1680699149138,1.9812343,28601.0,28600.0,0.4989531]
[1680699149351,1.9812343,28601.0,28600.0,3.1e-06]
[1680699149564,1.9812343,28601.0,28591.0,0.3811]
[1680699149565,1.9810243,28601.0,28592.0,0.00018]
[1680699149779,0.008743,28593.0,28592.0,0.00018]
[1680699149990,0.14972551,28593.0,28592.0,0.00018]
[1680699150203,0.008743,28593.0,28592.0,0.00018]
[1680699150390,0.008743,28593.0,28592.0,0.003]
[1680699150826,0.14098251,28593.0,28592.0,0.003]
[1680699151095,0.008742,28597.0,28592.0,0.003]
[1680699151314,0.008742,28596.0,28592.0,0.14489681]
[1680699151536,0.017484,28597.0,28592.0,0.00018]
[1680699151773,0.008742,28595.0,28592.0,0.14489681]
[1680699151983,0.017484,28597.0,28592.0,0.00318]
[1680699152192,0.008742,28595.0,28592.0,0.003]
[1680699152457,0.0658,28601.0,28593.0,0.35471056]
[1680699152668,0.3835,28604.0,28594.0,0.45206485]
[1680699152669,0.02944739,28596.0,28594.0,0.45206485]
[1680699152883,4.739e-05,28596.0,28595.0,0.39375656]
[1680699153099,4.739e-05,28596.0,28595.0,1.15734141]
[1680699153326,4.739e-05,28596.0,28595.0,1.24384318]
[1680699153534,4.739e-05,28596.0,28595.0,1.34384318]
[1680699153741,0.00874,28604.0,28595.0,1.55232069]
[1680699153944,2.004279,28606.0,28597.0,0.5976232]
[1680699154152,0.00874,28603.0,28599.0,0.3687]
[1680699154376,0.00874,28603.0,28600.0,0.35471056]
[1680699154797,0.00874,28603.0,28601.0,0.001]
[1680699155008,0.00874,28603.0,28601.0,0.35571056]
[1680699155473,0.00021,28607.0,28602.0,0.49660737]
[1680699155703,0.036711,28608.0,28603.0,0.1]
[1680699155704,0.027972,28608.0,28603.0,0.1]
[1680699155920,0.027972,28608.0,28605.0,0.1462]
[1680699156166,0.027972,28608.0,28607.0,0.037108]
[1680699156593,0.027972,28608.0,28607.0,0.038208]
[1680699157866,0.027972,28608.0,28607.0,0.0171]
[1680699158106,0.027972,28608.0,28607.0,0.058063]
[1680699158544,0.027972,28608.0,28607.0,0.042063]
[1680699158836,0.027972,28608.0,28607.0,0.044063]
[1680699159469,0.027972,28608.0,28607.0,0.39877356]
[1680699159686,0.027972,28608.0,28607.0,0.042963]
[1680699159902,0.027972,28608.0,28607.0,0.0031]
[1680699160144,0.3,28617.0,28607.0,0.49970737]
[1680699160365,0.24398856,28623.0,28607.0,0.49970737]
[1680699160366,0.02575918,28620.0,28616.0,0.50121056]
[1680699160576,0.02575918,28620.0,28619.0,0.86991056]
[1680699160794,0.01565161,28620.0,28619.0,7.36664437]
[1680699161005,0.01565161,28620.0,28619.0,7.53116437]
[1680699161226,0.01565161,28620.0,28619.0,7.53270437]
[1680699161439,0.01565161,28620.0,28619.0,7.39080756]
[1680699161440,0.00425161,28620.0,28619.0,7.39080756]
[1680699161658,0.0242,28625.0,28620.0,0.01138839]
[1680699161876,0.00878304,28636.0,28620.0,0.01138839]
[1680699161877,0.4,28650.0,28621.0,0.037636]
[1680699162092,0.008733,28628.0,28625.0,0.14189681]
[1680699162307,1.257397,28627.0,28625.0,0.00018]
[1680699162733,0.35471056,28628.0,28625.0,0.00018]
[1680699162958,1.2573611,28627.0,28625.0,0.00018]
[1680699163418,1.2573611,28627.0,28625.0,0.00918]
[1680699163637,0.35471056,28628.0,28625.0,0.00918]
[1680699164089,0.3,28627.0,28625.0,0.00918]
[1680699164529,0.01746,28637.0,28625.0,0.46563656]
[1680699164530,0.3,28630.0,28625.0,0.46563656]
[1680699164743,0.3,28630.0,28625.0,0.24207681]
[1680699164961,0.3,28630.0,28627.0,0.001]
[1680699165226,0.00873,28634.0,28627.0,0.00118]
[1680699165464,0.021276,28633.0,28628.0,0.14189681]
[1680699165703,0.060072,28629.0,28628.0,0.14207681]
[1680699165955,0.060072,28629.0,28628.0,1.00018]
[1680699166169,0.95930327,28629.0,28615.0,0.3497]
[1680699166396,0.3687,28622.0,28608.0,1.4206]
[1680699166638,0.24098251,28621.0,28611.0,0.35471056]
[1680699166855,0.24098251,28621.0,28617.0,1.0]
[1680699166856,0.14116251,28621.0,28617.0,1.0]
[1680699167085,0.00018,28621.0,28620.0,1.0]
[1680699167306,0.00018,28627.0,28625.0,1.0]
[1680699167761,0.008733,28626.0,28625.0,1.0]
[1680699167990,0.008733,28627.0,28625.0,1.0]
[1680699168645,0.008733,28628.0,28625.0,1.0]
[1680699168853,0.008912,28629.0,28625.0,1.0]
[1680699169074,0.008733,28627.0,28625.0,1.0]
[1680699169282,0.008733,28627.0,28625.0,1.014]
[1680699169491,0.020889,28626.0,28625.0,1.0]
[1680699169716,0.020889,28626.0,28625.0,1.014]
[1680699169717,0.0617786,28626.0,28625.0,1.014]
[1680699169919,0.0814526,28626.0,28625.0,1.014]
[1680699170133,0.0820596,28626.0,28625.0,1.0]
[1680699170565,0.0617786,28626.0,28625.0,1.001]
[1680699171432,0.0617786,28626.0,28625.0,1.0]
[1680699171705,0.0697646,28626.0,28625.0,1.001]
[1680699171911,0.0687646,28626.0,28625.0,1.0]
[1680699172116,0.0617786,28626.0,28625.0,1.007]
[1680699172544,0.0617786,28626.0,28625.0,1.0]